fUST/lending_fUST_20250130
["ID","MTS","AMOUNT","RATE_DAILY","PERIOD"]
[350960900,1738249840452,-500.0,0.00019176,2]
[350960901,1738249840462,-500.0,0.00019176,2]
[350960902,1738249840471,-500.0,0.00019176,2]
[350960903,1738249840480,-500.0,0.00019176,2]
[350960904,1738249840490,-500.0,0.00019176,2]
[350960905,1738249840500,-500.0,0.00019176,2]
[350960906,1738249840510,-500.0,0.00019176,2]
[350960908,1738249840519,-500.0,0.00019176,2]
[350960909,1738249840528,-500.0,0.00019176,2]
[350960910,1738249840538,-500.0,0.00019176,2]
[350960911,1738249840548,-500.0,0.00019176,2]
[350960912,1738249840557,-500.0,0.00019176,2]
[350960913,1738249840567,-500.0,0.00019176,2]
[350960914,1738249840576,-500.0,0.00019176,2]
[350960915,1738249840585,-500.0,0.00019176,2]
[350960916,1738249840595,-251.9760847,0.00019176,2]
[350960917,1738249840605,-500.0,0.00019176,2]
[350960918,1738249840615,-500.0,0.00019176,2]
[350960919,1738249840624,-500.0,0.00019176,2]
[350960920,1738249840633,-500.0,0.00019176,2]
[350960922,1738249840643,-500.0,0.00019176,2]
[350960924,1738249840652,-500.0,0.00019176,2]
[350960926,1738249840662,-500.0,0.00019176,2]
[350960927,1738249840672,-499.0,0.00019178,2]
[350960928,1738249840684,-237.845873,0.00019178,2]
[350960929,1738249840694,-150.0,0.000192,2]
[350960930,1738249840704,-500.0,0.00019309,2]
[350960931,1738249840713,-500.0,0.00019309,2]
[350960932,1738249840723,-500.0,0.0001931,2]
[350960933,1738249840733,-500.0,0.0001931,2]
[350960934,1738249840742,-500.0,0.0001931,2]
[350960935,1738249840751,-500.0,0.0001931,2]
[350960936,1738249840761,-608.01052012,0.0001931,2]
[350960937,1738249840770,-500.0,0.0001931,2]
[350960938,1738249840780,-500.0,0.0001931,2]
[350960939,1738249840790,-258.14,0.0001931,2]
[350960940,1738249840800,-500.0,0.0001931,2]
[350960941,1738249840810,-500.0,0.0001931,2]
[350960942,1738249840829,-315.48,0.0001931,2]
[350960943,1738249840839,-168.69,0.0001931,2]
[350960944,1738249840848,-500.0,0.0001931,2]
[350960946,1738249840859,-500.0,0.0001931,2]
[350960948,1738249840868,-609.30933581,0.00019311,2]
[350960949,1738249840878,-500.0,0.00019311,2]
[350960950,1738249840889,-503.89244049,0.00019311,2]
[350960951,1738249840898,-507.65551076,0.00019311,2]
[350960952,1738249840908,-500.0,0.00019311,2]
[350960953,1738249840918,-506.86010962,0.00019311,2]
[350960954,1738249840929,-500.0,0.00019311,2]
[350960955,1738249840939,-500.0,0.00019311,2]
[350960956,1738249840948,-500.0,0.00019311,2]
[350960957,1738249840958,-500.0,0.00019311,2]
[350960958,1738249840967,-500.0,0.00019311,2]
[350960959,1738249840976,-500.0,0.00019311,2]
[350960960,1738249840985,-321.18157943,0.00019311,2]
[350960961,1738249840994,-500.0,0.00019311,2]
[350960962,1738249841003,-500.0,0.00019311,2]
[350960963,1738249841013,-500.0,0.00019311,2]
[350960964,1738249841022,-500.0,0.00019311,2]
[350960965,1738249841032,-500.0,0.00019311,2]
[350960966,1738249841041,-202.13662313,0.00019311,2]
[350960967,1738249841051,-500.0,0.00019311,2]
[350960968,1738249841060,-500.0,0.00019311,2]
[350960969,1738249841072,-500.0,0.00019311,2]
[350960970,1738249841082,-500.0,0.00019311,2]
[350960971,1738249841092,-500.0,0.00019311,2]
[350960972,1738249841101,-500.0,0.00019311,2]
[350960973,1738249841110,-500.0,0.00019311,2]
[350960974,1738249841120,-500.0,0.00019311,2]
[350960975,1738249841130,-500.0,0.00019311,2]
[350960976,1738249841139,-492.00233006,0.00019311,2]
[350960977,1738249841151,-500.0,0.00019311,2]
[350960978,1738249841160,-500.0,0.00019311,2]
[350960979,1738249841169,-500.0,0.00019311,2]
[350960980,1738249841183,-500.0,0.00019311,2]
[350960981,1738249841198,-500.0,0.00019311,2]
[350960982,1738249841210,-500.0,0.00019311,2]
[350960983,1738249841222,-500.0,0.00019311,2]
[350960984,1738249841233,-500.0,0.00019311,2]
[350960985,1738249841244,-504.17164218,0.00019311,2]
[350960986,1738249841254,-500.0,0.00019311,2]
[350960987,1738249841263,-500.87043282,0.00019311,2]
[350960988,1738249841274,-500.0,0.00019311,2]
[350960989,1738249841283,-500.0,0.00019311,2]
[350960990,1738249841294,-500.0,0.00019311,2]
[350960991,1738249841303,-537.20449259,0.00019311,2]
[350960992,1738249841312,-500.0,0.00019311,2]
[350960993,1738249841322,-500.0,0.00019311,2]
[350960994,1738249841333,-331.80934563,0.00019311,2]
[350960995,1738249841343,-500.0,0.00019311,2]
[350960996,1738249841353,-500.0,0.00019311,2]
[350960997,1738249841362,-500.0,0.00019311,2]
[350960998,1738249841372,-500.0,0.00019311,2]
[350960999,1738249841381,-2073.11,0.00019311,2]
[350961000,1738249841391,-500.0,0.00019311,2]
[350961001,1738249841400,-500.0,0.00019311,2]
[350961002,1738249841410,-443.7138306,0.00019311,2]
[350961003,1738249841420,-593.75595304,0.00019311,2]
[350961004,1738249841431,-500.0,0.00019312,2]
[350961005,1738249841441,-500.0,0.00019312,2]
[350961006,1738249841450,-500.0,0.00019312,2]
[350961007,1738249841459,-500.0,0.00019312,2]
[350961008,1738249841469,-502.60717702,0.00019312,2]
[350961009,1738249841479,-502.60636989,0.00019312,2]
[350961010,1738249841488,-504.02568617,0.00019312,2]
[350961011,1738249841497,-633.57827246,0.00019312,2]
[350961012,1738249841506,-234.74096042,0.00019312,2]
[350961013,1738249841516,-548.38,0.00019312,2]
[350961014,1738249841525,-500.0,0.00019312,2]
[350961015,1738249841535,-767.83,0.00019312,2]
[350961016,1738249841544,-500.0,0.00019313,2]
[350961017,1738249841553,-576.1582458,0.00019313,2]
[350961018,1738249841571,-500.0,0.00019313,2]
[350961019,1738249841581,-500.0,0.00019313,2]
[350961020,1738249841591,-500.0,0.00019313,2]
[350961021,1738249841601,-500.0,0.00019313,2]
[350961022,1738249841611,-646.49552332,0.00019313,2]
[350961023,1738249841622,-500.0,0.00019313,2]
[350961024,1738249841632,-500.0,0.00019313,2]
[350961025,1738249841641,-500.0,0.00019313,2]
[350961026,1738249841651,-500.0,0.00019313,2]
[350961027,1738249841660,-500.0,0.00019313,2]
[350961028,1738249841669,-500.0,0.00019313,2]
[350961029,1738249841680,-500.0,0.00019313,2]
[350961030,1738249841690,-511.46951531,0.00019313,2]
[350961031,1738249841699,-501.53792323,0.00019376,2]
[350961032,1738249841709,-602.87,0.00019446,2]
[350961033,1738249841718,-500.0,0.00019446,2]
[350961034,1738249841728,-500.0,0.00019447,2]
[350961035,1738249841737,-500.0,0.00019447,2]
[350961036,1738249841746,-500.0,0.00019447,2]
[350961037,1738249841756,-500.0,0.00019447,2]
[350961038,1738249841766,-500.0,0.00019447,2]
[350961039,1738249841776,-500.0,0.00019447,2]
[350961040,1738249841786,-500.0,0.00019447,2]
[350961041,1738249841795,-500.0,0.00019447,2]
[350961042,1738249841804,-150.71138697,0.00019447,2]
[350961043,1738249841815,-500.0,0.00019447,2]
[350961044,1738249841914,-500.0,0.00019448,2]
[350961045,1738249841924,-500.0,0.00019448,2]
[350961046,1738249841936,-500.0,0.00019448,2]
[350961047,1738249841946,-500.0,0.00019448,2]
[350961048,1738249841955,-303.8,0.00019448,2]
[350961049,1738249841965,-500.0,0.00019448,2]
[350961050,1738249841975,-500.0,0.00019448,2]
[350961051,1738249841985,-500.0,0.00019448,2]
[350961052,1738249841994,-500.0,0.00019448,2]
[350961053,1738249842003,-523.13,0.00019448,2]
[350961054,1738249842012,-189.42348952,0.00019448,2]
[350961055,1738249842022,-500.0,0.00019448,2]
[350961056,1738249842031,-500.0,0.00019448,2]
[350961057,1738249842040,-2073.11,0.00019448,2]
[350961058,1738249842049,-565.54,0.00019448,2]
[350961059,1738249842059,-500.0,0.00019448,2]
[350961060,1738249842068,-245.48,0.00019449,2]
[350961061,1738249842077,-502.79620716,0.00019449,2]
[350961062,1738249842086,-548.38,0.00019449,2]
[350961063,1738249842095,-500.0,0.00019449,2]
[350961064,1738249842105,-767.83,0.00019449,2]
[350961065,1738249842115,-500.0,0.0001945,2]
[350961066,1738249842124,-500.0,0.0001945,2]
[350961067,1738249842133,-413.16957957,0.0001945,2]
[350961068,1738249842143,-500.0,0.00019584,2]
[350961069,1738249842152,-453.74555143,0.00019584,2]
[350961070,1738249842162,-500.0,0.00019584,2]
[350961071,1738249842171,-500.0,0.00019584,2]
[350961072,1738249842184,-618.9,0.00019584,2]
[350961073,1738249842193,-500.0,0.00019584,2]
[350961074,1738249842203,-425.13,0.00019584,2]
[350961075,1738249842212,-500.0,0.00019584,2]
[350961076,1738249842221,-500.0,0.00019584,2]
[350961077,1738249842231,-500.0,0.00019584,2]
[350961078,1738249842240,-249.12,0.00019585,2]
[350961079,1738249842249,-152.47574432,0.00019585,2]
[350961080,1738249842259,-163.02,0.00019585,2]
[350961081,1738249842269,-500.0,0.00019585,2]
[350961082,1738249842279,-500.0,0.00019585,2]
[350961083,1738249842288,-2073.11,0.00019585,2]
[350961084,1738249842297,-500.0,0.00019585,2]
[350961085,1738249842307,-548.38,0.00019586,2]
[350961086,1738249842316,-500.0,0.00019586,2]
[350961087,1738249842326,-767.83,0.00019586,2]
[350961088,1738249842335,-500.0,0.00019587,2]
[350961089,1738249842345,-500.0,0.00019587,2]
[350961090,1738249842355,-500.0,0.00019721,2]
[350961091,1738249842365,-500.0,0.00019721,2]
[350961092,1738249842375,-500.0,0.00019721,2]
[350961093,1738249842385,-500.0,0.00019721,2]
[350961094,1738249842395,-500.0,0.00019721,2]
[350961095,1738249842405,-500.0,0.00019721,2]
[350961096,1738249842414,-500.0,0.00019721,2]
[350961097,1738249842424,-500.0,0.00019722,2]
[350961098,1738249842437,-500.0,0.00019722,2]
[350961099,1738249842446,-500.0,0.00019722,2]
[350961100,1738249842456,-500.0,0.00019722,2]
[350961101,1738249842467,-500.0,0.00019722,2]
[350961102,1738249842476,-2073.11,0.00019722,2]
[350961103,1738249842486,-517.16506003,0.00019722,2]
[350961104,1738249842496,-548.38,0.00019723,2]
[350961105,1738249842505,-500.0,0.00019723,2]
[350961106,1738249842515,-215.13631341,0.00019723,2]
[350961107,1738249842650,-505.62911672,0.00019174,2]
[350961108,1738249842660,-552.69368659,0.00019723,2]
[350961109,1738249842670,-309.63,0.00019724,2]
[350961110,1738249842681,-583.82,0.00019724,2]
[350961111,1738249842691,-500.0,0.00019858,2]
[350961112,1738249842700,-500.0,0.00019858,2]
[350961113,1738249842710,-500.0,0.00019858,2]
[350961114,1738249842719,-500.0,0.00019858,2]
[350961115,1738249842729,-500.0,0.00019858,2]
[350961116,1738249842738,-500.0,0.00019858,2]
[350961117,1738249842748,-402.23,0.00019858,2]
[350961118,1738249842758,-500.0,0.00019859,2]
[350961119,1738249842768,-500.0,0.00019859,2]
[350961120,1738249842778,-2073.11,0.00019859,2]
[350961121,1738249842788,-548.38,0.0001986,2]
[350961122,1738249842797,-500.0,0.0001986,2]
[350961123,1738249842807,-767.83,0.0001986,2]
[350961124,1738249842818,-500.0,0.00019995,2]
[350961125,1738249842831,-371.59,0.00019995,2]
[350961126,1738249842840,-500.0,0.00019995,2]
[350961127,1738249842850,-500.0,0.00019995,2]
[350961128,1738249842859,-530.84,0.00019995,2]
[350961129,1738249842870,-500.0,0.00019995,2]
[350961130,1738249842879,-500.0,0.00019996,2]
[350961131,1738249842888,-553.1,0.00019996,2]
[350961132,1738249842898,-2073.11,0.00019996,2]
[350961133,1738249842908,-548.38,0.00019997,2]
[350961134,1738249842918,-500.0,0.00019997,2]
[350961135,1738249842929,-767.83,0.00019997,2]
[350961136,1738249842939,-1996.8906453,0.0002,2]
[350961138,1738249842949,-9969.0,0.0002,2]
[350961140,1738249842958,-160.0,0.0002,3]
[350961142,1738249842968,-500.0,0.00020132,2]
[350961143,1738249842978,-500.0,0.00020132,2]
[350961144,1738249842987,-500.0,0.00020132,2]
[350961145,1738249842999,-500.0,0.00020132,2]
[350961146,1738249843018,-500.0,0.00020133,2]
[350961148,1738249843029,-500.0,0.00020133,2]
[350961150,1738249843039,-500.0,0.00020133,2]
[350961153,1738249843048,-165.71365552,0.00020133,2]
[350961156,1738249843058,-2073.11,0.00020133,2]
[350961159,1738249843067,-548.38,0.00020134,2]
[350961163,1738249843077,-500.0,0.00020134,2]
[350961165,1738249843086,-767.83,0.00020134,2]
[350961168,1738249843096,-331.5,0.00020176,15]
[350961171,1738249843105,-374.37104913,0.00020269,2]
[350961174,1738249843115,-500.0,0.00020269,2]
[350961177,1738249843124,-394.26,0.00020269,2]
[350961180,1738249843133,-500.0,0.00020269,2]
[350961183,1738249843143,-2073.11,0.0002027,2]
[350961185,1738249843153,-548.38,0.00020271,2]
[350961187,1738249843162,-500.0,0.00020271,2]
[350961188,1738249843173,-767.83,0.00020271,2]
[350961189,1738249843184,-500.0,0.00020406,2]
[350961190,1738249843195,-500.0,0.00020406,2]
[350961191,1738249843204,-2073.11,0.00020407,2]
[350961192,1738249843214,-548.38,0.00020408,2]
[350961193,1738249843223,-500.0,0.00020408,2]
[350961194,1738249843233,-767.83,0.00020408,2]
[350961195,1738249843243,-186.891181,0.00020447,2]
[350961196,1738249843253,-1012.4374188,0.000205,2]
[350961197,1738249843262,-500.0,0.00020543,2]
[350961198,1738249843272,-500.0,0.00020543,2]
[350961199,1738249843282,-1784.4123551,0.00020544,2]
[350961201,1738249843324,-288.6976449,0.00020544,2]
[350961202,1738249843333,-548.38,0.00020545,2]
[350961203,1738249843342,-500.0,0.00020545,2]
[350961204,1738249843351,-767.83,0.00020545,2]
[350961205,1738249843361,-499.0,0.00020547,4]
[350961206,1738249843370,-500.0,0.0002068,2]
[350961207,1738249843380,-500.0,0.0002068,2]
[350961208,1738249843389,-500.0,0.00020681,2]
[350961209,1738249843399,-500.0,0.00020681,2]
[350961210,1738249843409,-500.0,0.00020681,2]
[350961211,1738249843419,-2073.11,0.00020681,2]
[350961212,1738249843430,-7074.62098558,0.00020682,5]
[350961213,1738249843438,-548.38,0.00020682,2]
[350961214,1738249843448,-500.0,0.00020682,2]
[350961215,1738249843457,-767.83,0.00020682,2]
[350961216,1738249843467,-1996.8906453,0.000208,2]
[350961217,1738249843476,-500.0,0.00020817,2]
[350961218,1738249843486,-158.82,0.00020817,2]
[350961219,1738249843496,-2073.11,0.00020818,2]
[350961220,1738249843505,-548.38,0.00020819,2]
[350961221,1738249843515,-500.0,0.00020819,2]
[350961222,1738249843524,-767.83,0.00020819,2]
[350961223,1738249843536,-420.0,0.00020894,2]
[350961224,1738249843545,-500.0,0.00020954,2]
[350961225,1738249843554,-2073.11,0.00020955,2]
[350961226,1738249843563,-3793.81293934,0.00020956,5]
[350961227,1738249843578,-12659.83952258,0.00020956,5]
[350961228,1738249843588,-548.38,0.00020956,2]
[350961229,1738249843599,-306.44,0.00020956,2]
[350961230,1738249843610,-767.83,0.00020956,2]
[350961231,1738249843620,-3000.0,0.00021,2]
[350961232,1738249843630,-1000.0,0.00021,21]
[350961233,1738249843640,-3000.0,0.0002101,2]
[350961234,1738249843649,-500.0,0.00021019,2]
[350961235,1738249843659,-500.0,0.00021019,2]
[350961236,1738249843669,-500.0,0.00021019,2]
[350961237,1738249843679,-3000.0,0.0002102,2]
[350961238,1738249843688,-3000.0,0.0002103,2]
[350961239,1738249843698,-1008.68882566,0.0002104,2]
[350961240,1738249843710,-1991.31117434,0.0002104,2]
[350961241,1738249843720,-3000.0,0.0002105,2]
[350961242,1738249843729,-3000.0,0.0002106,2]
[350961243,1738249843738,-3000.0,0.0002107,2]
[350961244,1738249843747,-3000.0,0.0002108,2]
[350961245,1738249843756,-500.0,0.00021088,2]
[350961246,1738249843766,-500.0,0.00021088,2]
[350961247,1738249843775,-500.0,0.00021088,2]
[350961248,1738249843785,-3000.0,0.0002109,2]
[350961249,1738249843795,-500.0,0.00021091,2]
[350961250,1738249843804,-793.15135441,0.00021092,2]
[350961261,1738249844705,-506.46905238,0.00019174,2]
[350961262,1738249844715,-500.0,0.00019174,2]
[350961263,1738249844724,-500.0,0.00019178,7]
[350961264,1738249844734,-1279.95864559,0.00021092,2]
[350961265,1738249844744,-548.38,0.00021093,2]
[350961266,1738249844753,-767.83,0.00021093,2]
[350961267,1738249844763,-3000.0,0.000211,2]
[350961268,1738249844773,-500.0,0.00021109,2]
[350961269,1738249844783,-500.0,0.00021109,2]
[350961270,1738249844793,-500.0,0.00021109,2]
[350961271,1738249844802,-3000.0,0.0002111,2]
[350961272,1738249844811,-3000.0,0.0002112,2]
[350961273,1738249844906,-3000.0,0.0002113,2]
[350961274,1738249844916,-3000.0,0.0002114,2]
[350961275,1738249844928,-3000.0,0.0002115,2]
[350961276,1738249844938,-156.427,0.0002116,2]
[350961277,1738249844948,-3000.0,0.0002116,2]
[350961278,1738249844958,-500.0,0.00021169,2]
[350961279,1738249844968,-326.2,0.00021169,2]
[350961280,1738249844977,-3000.0,0.0002117,2]
[350961281,1738249844987,-3000.0,0.0002118,2]
[350961282,1738249844997,-3000.0,0.0002119,2]
[350961283,1738249845006,-160.0,0.00021191,2]
[350961284,1738249845016,-3000.0,0.000212,2]
[350961285,1738249845025,-1996.8906453,0.000212,2]
[350961286,1738249845035,-3000.0,0.0002121,2]
[350961287,1738249845044,-1200.0,0.00021217,2]
[350961288,1738249845054,-3000.0,0.0002122,2]
[350961289,1738249845064,-500.0,0.00021228,2]
[350961290,1738249845073,-2073.11,0.00021229,2]
[350961291,1738249845083,-3000.0,0.0002123,2]
[350961292,1738249845092,-548.38,0.0002123,2]
[350961293,1738249845102,-767.83,0.0002123,2]
[350961294,1738249845111,-395.0,0.00021232,2]
[350961295,1738249845121,-3000.0,0.0002124,2]
[350961296,1738249845130,-3000.0,0.0002125,2]
[350961297,1738249845141,-3000.0,0.0002126,2]
[350961298,1738249845150,-3000.0,0.0002127,2]
[350961299,1738249845160,-3000.0,0.0002128,2]
[350961300,1738249845170,-3000.0,0.0002129,2]
[350961301,1738249845182,-3000.0,0.000213,2]
[350961302,1738249845192,-3000.0,0.0002131,2]
[350961303,1738249845202,-3000.0,0.0002132,2]
[350961304,1738249845212,-3000.0,0.0002133,2]
[350961305,1738249845221,-3000.0,0.0002134,2]
[350961306,1738249845231,-3000.0,0.0002135,2]
[350961307,1738249845240,-3000.0,0.0002136,2]
[350961308,1738249845250,-500.0,0.00021365,2]
[350961309,1738249845260,-2073.11,0.00021366,2]
[350961310,1738249845270,-548.38,0.00021367,2]
[350961311,1738249845280,-767.83,0.00021367,2]
[350961312,1738249845289,-3000.0,0.0002137,2]
[350961313,1738249845298,-3000.0,0.0002138,2]
[350961314,1738249845308,-3000.0,0.0002139,2]
[350961315,1738249845317,-3000.0,0.000214,2]
[350961316,1738249845327,-3000.0,0.0002141,2]
[350961317,1738249845336,-3000.0,0.0002142,2]
[350961318,1738249845345,-3000.0,0.0002143,2]
[350961319,1738249845355,-260.271,0.00021438,2]
[350961320,1738249845364,-537.0,0.00021438,2]
[350961321,1738249845374,-2045.0,0.00021438,2]
[350961322,1738249845383,-2303.0,0.00021438,2]
[350961323,1738249845392,-4630.547837,0.0002144,2]
[350961324,1738249845402,-1996.8906453,0.000215,2]
[350961325,1738249845411,-210.34,0.00021502,2]
[350961326,1738249845420,-2073.11,0.00021503,2]
[350961327,1738249845431,-548.38,0.00021504,2]
[350961328,1738249845441,-767.83,0.00021504,2]
[350961329,1738249845449,-153.0,0.00021554,2]
[350961330,1738249845459,-153.0,0.00021554,2]
[350961331,1738249845469,-153.0,0.00021554,2]
[350961332,1738249845478,-153.0,0.00021554,2]
[350961333,1738249845488,-153.0,0.00021554,2]
[350961334,1738249845497,-153.0,0.00021554,2]
[350961335,1738249845507,-153.0,0.00021554,2]
[350961336,1738249845517,-153.0,0.00021554,2]
[350961337,1738249845526,-153.0,0.00021555,2]
[350961338,1738249845536,-9969.0,0.000216,4]
[350961339,1738249845546,-2073.11,0.0002164,2]
[350961340,1738249845555,-548.38,0.00021641,2]
[350961341,1738249845565,-767.83,0.00021641,2]
[350961342,1738249845575,-2073.11,0.00021777,2]
[350961343,1738249845584,-548.38,0.00021778,2]
[350961344,1738249845594,-767.83,0.00021778,2]
[350961345,1738249845604,-1996.8906453,0.000218,2]
[350961346,1738249845615,-2073.11,0.00021914,2]
[350961347,1738249845626,-548.38,0.00021915,2]
[350961348,1738249845635,-767.83,0.00021915,2]
[350961349,1738249845645,-500.0,0.00021917,7]
[350961350,1738249845655,-500.0,0.00021917,7]
[350961351,1738249845664,-499.0,0.00021917,6]
[350961352,1738249845674,-278.02350951,0.00021918,2]
[350961353,1738249845686,-1094.74,0.00022,30]
[350961354,1738249845696,-1000.0,0.00022,22]
[350961355,1738249845705,-151.0,0.00022,2]
[350961356,1738249845716,-2073.11,0.00022051,2]
[350961357,1738249845726,-548.38,0.00022052,2]
[350961358,1738249845735,-767.83,0.00022052,2]
[350961359,1738249845746,-154.54,0.000221,31]
[350961360,1738249845755,-154.54,0.000221,31]
[350961361,1738249845765,-154.54,0.000221,31]
[350961362,1738249845774,-154.54,0.000221,31]
[350961363,1738249845783,-154.54,0.000221,31]
[350961364,1738249845793,-154.54,0.000221,31]
[350961365,1738249845802,-154.54,0.000221,31]
[350961366,1738249845812,-173.93937524,0.00022175,2]
[350961367,1738249845823,-2073.11,0.00022188,2]
[350961368,1738249845833,-548.38,0.00022189,2]
[350961369,1738249845843,-767.83,0.00022189,2]
[350961370,1738249845852,-2000.0,0.000222,2]
[350961371,1738249845861,-179.0,0.00022218,3]
[350961373,1738249845870,-155.055412,0.00022261,7]
[350961374,1738249845880,-155.055412,0.00022261,7]
[350961375,1738249845890,-155.055412,0.00022261,7]
[350961376,1738249845900,-155.055412,0.00022261,7]
[350961378,1738249845913,-155.055412,0.00022261,7]
[350961379,1738249845926,-155.055412,0.00022261,7]
[350961380,1738249845940,-155.055412,0.00022261,7]
[350961382,1738249845953,-155.055412,0.00022261,7]
[350961384,1738249845966,-155.055412,0.00022261,7]
[350961386,1738249845976,-155.055412,0.00022261,7]
[350961388,1738249845989,-155.055412,0.00022261,7]
[350961389,1738249846001,-155.055412,0.00022261,7]
[350961390,1738249846012,-155.055412,0.00022261,7]
[350961391,1738249846025,-155.055412,0.00022261,7]
[350961392,1738249846038,-155.055412,0.00022261,7]
[350961393,1738249846050,-155.055412,0.00022261,7]
[350961394,1738249846062,-155.055412,0.00022261,7]
[350961395,1738249846075,-155.055412,0.00022261,7]
[350961396,1738249846088,-155.055412,0.00022261,7]
[350961397,1738249846101,-155.055408,0.00022261,7]
[350961398,1738249846113,-151.0,0.00022261,7]
[350961399,1738249846126,-151.0,0.00022261,7]
[350961400,1738249846137,-151.0,0.00022261,7]
[350961401,1738249846151,-189.378942,0.00022261,7]
[350961402,1738249846164,-151.0,0.00022261,7]
[350961403,1738249846176,-151.0,0.00022261,7]
[350961404,1738249846190,-151.0,0.00022261,7]
[350961406,1738249846200,-151.0,0.00022261,7]
[350961407,1738249846210,-151.0,0.00022261,7]
[350961409,1738249846222,-151.0,0.00022261,7]
[350961411,1738249846233,-151.0,0.00022261,7]
[350961412,1738249846245,-151.0,0.00022261,7]
[350961413,1738249846258,-151.0,0.00022261,7]
[350961414,1738249846271,-151.0,0.00022261,7]
[350961415,1738249846283,-151.0,0.00022261,7]
[350961416,1738249846296,-295.305626,0.00022261,7]
[350961417,1738249846310,-500.0,0.00022261,7]
[350961418,1738249846324,-282.312506,0.00022261,7]
[350961420,1738249846337,-282.312506,0.00022261,7]
[350961422,1738249846347,-282.312506,0.00022261,7]
[350961424,1738249846358,-282.312506,0.00022261,7]
[350961425,1738249846367,-282.312506,0.00022261,7]
[350961426,1738249846378,-282.312506,0.00022261,7]
[350961427,1738249846390,-282.312506,0.00022261,7]
[350961428,1738249846403,-282.312506,0.00022261,7]
[350961429,1738249846416,-282.312506,0.00022261,7]
[350961430,1738249846427,-282.312506,0.00022261,7]
[350961432,1738249846439,-282.312506,0.00022261,7]
[350961433,1738249846450,-282.312506,0.00022261,7]
[350961434,1738249846462,-282.312506,0.00022261,7]
[350961435,1738249846473,-282.312506,0.00022261,7]
[350961436,1738249846484,-282.312506,0.00022261,7]
[350961437,1738249846495,-282.312506,0.00022261,7]
[350961439,1738249846506,-282.312506,0.00022261,7]
[350961441,1738249846516,-282.312506,0.00022261,7]
[350961442,1738249846528,-282.312506,0.00022261,7]
[350961443,1738249846539,-282.312506,0.00022261,7]
[350961444,1738249846550,-151.0,0.00022264,7]
[350961445,1738249846560,-151.0,0.00022264,7]
[350961446,1738249846571,-151.0,0.00022264,7]
[350961448,1738249846583,-151.0,0.00022264,7]
[350961450,1738249846594,-151.0,0.00022264,7]
[350961452,1738249846605,-219.46823,0.00022264,7]
[350961453,1738249846616,-151.0,0.00022264,7]
[350961454,1738249846628,-151.0,0.00022264,7]
[350961455,1738249846641,-151.0,0.00022264,7]
[350961456,1738249846652,-151.0,0.00022264,7]
[350961457,1738249846664,-151.0,0.00022264,7]
[350961458,1738249846676,-151.0,0.00022264,7]
[350961459,1738249846687,-151.0,0.00022264,7]
[350961460,1738249846699,-151.0,0.00022264,7]
[350961461,1738249846709,-233.05701,0.00022264,7]
[350961462,1738249846721,-164.27085799,0.00022264,7]
[350961463,1738249846732,-151.0,0.00022264,7]